Workbook

Sheet GOA Specs PT
A1: November Plan Team OFL and ABC recommendations for Groundfish in the Gulf of Alaska (metric tons) for 2019 and 2020 (Page 1)
N2: Updated 11/29/2018
D3: 2017 | H3: 2018 | J3: Catch | K3: 2019 | N3: 2020
A4: Species | B4: Area | C4: OFL | D4: ABC | E4: TAC | F4: Catch | G4: OFL | H4: ABC | I4: TAC | J4: 2018-11-08 | K4: OFL | L4: ABC | M4: TAC | N4: OFL | O4: ABC | P4: TAC
A5: Pollock | B5: State GHL | C5: n/a | D5: 5,094 | E5: 0 | F5: - | G5: n/a | H5: 4,037 | I5: 0 | K5: n/a | L5: 3,396 | M5: 0 | N5: n/a | O5: 2,722
B6: W (610) | C6: n/a | D6: 43,602 | E6: 43,602 | F6: 49,452 | G6: n/a | H6: 30,188 | I6: 30,188 | J6: 30,676 | K6: n/a | L6: 24,875 | N6: n/a | O6: 19,939
B7: C (620) | C7: n/a | D7: 98,652 | E7: 98,652 | F7: 81,612 | G7: n/a | H7: 79,495 | I7: 79,495 | J7: 79,974 | K7: n/a | L7: 71,459 | N7: n/a | O7: 57,279
B8: C (630) | C8: n/a | D8: 48,929 | E8: 48,929 | F8: 53,063 | G8: n/a | H8: 40,939 | I8: 40,939 | J8: 39,511 | K8: n/a | L8: 30,372 | N8: n/a | O8: 24,345
B9: WYAK | C9: n/a | D9: 7,492 | E9: 7,492 | F9: 40 | G9: n/a | H9: 6,833 | I9: 6,833 | J9: 4,125 | K9: n/a | L9: 5,748 | N9: n/a | O9: 4,607
B10: Subtotal | C10: 235,807 | D10: =SUM(D5:D9) -> 203,769 | E10: =SUM(E6:E9) -> 198,675 | F10: =SUM(F5:F9) -> 184,167 | G10: 187,059 | H10: =SUM(H5:H9) -> 161,492 | I10: =SUM(I6:I9) -> 157,455 | J10: =SUM(J6:J9) -> 154,286 | K10: 194,230 | L10: =SUM(L5:L9) -> 135,850 | M10: =SUM(M6:M9) -> 0 | N10: 148,968 | O10: =SUM(O5:O9) -> 108,892
B11: EYAK/SEO | C11: 13,226 | D11: 9,920 | E11: 9,920 | F11: 0 | G11: 11,697 | H11: 8,773 | I11: 8,773 | J11: 0 | K11: 11,697 | L11: 8,773 | N11: 11,697 | O11: 8,773
B12: Total | C12: =C10+C11 -> 249,033 | D12: =D10+D11 -> 213,689 | E12: =E10+E11 -> 208,595 | F12: =F10+F11 -> 184,167 | G12: 198,756 | H12: =H10+H11 -> 170,265 | I12: =I10+I11 -> 166,228 | J12: =J10+J11 -> 154,286 | K12: =SUM(K10:K11) -> 205,927 | L12: =L10+L11 -> 144,623 | M12: =M10+M11 -> 0 | N12: =SUM(N10:N11) -> 160,665 | O12: =O10+O11 -> 117,665
A13: Pacific Cod | B13: W | C13: n/a | D13: 36,291 | E13: 25,404 | F13: 18,166 | G13: n/a | H13: 8,082 | I13: 5,657 | J13: 4,374 | K13: n/a | L13: 7,633 | N13: n/a | O13: 9,695
B14: C | C14: n/a | D14: 44,180 | E14: 33,135 | F14: 16,983 | G14: n/a | H14: 8,118 | I14: 6,089 | J14: 5,120 | K14: n/a | L14: 7,667 | N14: n/a | O14: 9,738
B15: E | C15: n/a | D15: 7,871 | E15: 5,903 | F15: 55 | G15: n/a | H15: 1,800 | I15: 1,350 | J15: 101 | K15: n/a | L15: 1,700 | N15: n/a | O15: 2,159
B16: Total | C16: 105,378 | D16: =SUM(D13:D15) -> 88,342 | E16: =SUM(E13:E15) -> 64,442 | F16: =SUM(F13:F15) -> 35,204 | G16: 23,565 | H16: =SUM(H13:H15) -> 18,000 | I16: =SUM(I13:I15) -> 13,096 | J16: =SUM(J13:J15) -> 9,595 | K16: 23,669 | L16: =SUM(L13:L15) -> 17,000 | M16: =SUM(M13:M15) -> 0 | N16: 26,078 | O16: =SUM(O13:O15) -> 21,592
A17: Sablefish | B17: W | C17: n/a | D17: 1,349 | E17: 1,349 | F17: 1,181 | G17: n/a | H17: 1,544 | I17: 1,544 | J17: 1,351 | K17: n/a | L17: 1,581 | N17: n/a | O17: 2,105
B18: C | C18: n/a | D18: 4,514 | E18: 4,514 | F18: 4,823 | G18: n/a | H18: 5,158 | I18: 5,158 | J18: 5,617 | K18: n/a | L18: 5,178 | N18: n/a | O18: 6,931
B19: WYAK | C19: n/a | D19: 1,605 | E19: 1,605 | F19: 1,698 | G19: n/a | H19: 1,829 | I19: 1,829 | J19: 1,804 | K19: n/a | L19: 1,828 | N19: n/a | O19: 2,433
B20: SEO | C20: n/a | D20: 2,606 | E20: 2,606 | F20: 2,798 | G20: n/a | H20: 2,974 | I20: 2,974 | J20: 2,944 | K20: n/a | L20: 2,984 | N20: n/a | O20: 3,993
B21: Total | C21: 11,885 | D21: =SUM(D17:D20) -> 10,074 | E21: =SUM(E17:E20) -> 10,074 | F21: =SUM(F17:F20) -> 10,500 | G21: 22,703 | H21: =SUM(H17:H20) -> 11,505 | I21: =SUM(I17:I20) -> 11,505 | J21: =SUM(J17:J20) -> 11,716 | K21: 25,227 | L21: =SUM(L17:L20) -> 11,571 | M21: =SUM(M17:M20) -> 0 | N21: 34,782 | O21: =SUM(O17:O20) -> 15,462
A22: Shallow-Water Flatfish | B22: W | C22: n/a | D22: 20,921 | E22: 13,250 | F22: 274 | G22: n/a | H22: 25,206 | I22: 13,250 | J22: 56 | K22: n/a | L22: 25,620 | N22: n/a | O22: 25,952
B23: C | C23: n/a | D23: 19,306 | E23: 19,306 | F23: 2,296 | G23: n/a | H23: 25,315 | I23: 25,315 | J23: 2,664 | K23: n/a | L23: 25,731 | N23: n/a | O23: 26,065
B24: WYAK | C24: n/a | D24: 3,188 | E24: 3,188 | F24: 0 | G24: n/a | H24: 2,242 | I24: 2,242 | J24: 1 | K24: n/a | L24: 2,279 | N24: n/a | O24: 2,308
B25: EYAK/SEO | C25: n/a | D25: 1,099 | E25: 1,099 | F25: 0 | G25: n/a | H25: 1,925 | I25: 1,925 | J25: 1 | K25: n/a | L25: 1,957 | N25: n/a | O25: 1,983
B26: Total | C26: 54,583 | D26: =SUM(D22:D25) -> 44,514 | E26: =SUM(E22:E25) -> 36,843 | F26: =SUM(F22:F25) -> 2,570 | G26: 67,240 | H26: =SUM(H22:H25) -> 54,688 | I26: =SUM(I22:I25) -> 42,732 | J26: =SUM(J22:J25) -> 2,722 | K26: 68,309 | L26: =SUM(L22:L25) -> 55,587 | M26: =SUM(M22:M25) -> 0 | N26: 69,167 | O26: =SUM(O22:O25) -> 56,308
A27: Deep-Water Flatfish | B27: W | C27: n/a | D27: 256 | E27: 256 | F27: 21 | G27: n/a | H27: 413 | I27: 413 | J27: 3 | K27: n/a | L27: 416 | N27: n/a | O27: 420
B28: C | C28: n/a | D28: 3,454 | E28: 3,454 | F28: 228 | G28: n/a | H28: 3,400 | I28: 3,400 | J28: 181 | K28: n/a | L28: 3,443 | N28: n/a | O28: 3,488
B29: WYAK | C29: n/a | D29: 3,017 | E29: 3,017 | F29: 8 | G29: n/a | H29: 3,239 | I29: 3,239 | J29: 6 | K29: n/a | L29: 3,280 | N29: n/a | O29: 3,323
B30: EYAK/SEO | C30: n/a | D30: 2,565 | E30: 2,565 | F30: 2 | G30: n/a | H30: 2,332 | I30: 2,332 | J30: 5 | K30: n/a | L30: 2,362 | N30: n/a | O30: 2,393
B31: Total | C31: 11,182 | D31: =SUM(D27:D30) -> 9,292 | E31: =SUM(E27:E30) -> 9,292 | F31: =SUM(F27:F30) -> 259 | G31: 11,294 | H31: =SUM(H27:H30)+1 -> 9,385 | I31: =SUM(I27:I30)+1 -> 9,385 | J31: =SUM(J27:J30) -> 195 | K31: 11,434 | L31: =SUM(L27:L30) -> 9,501 | M31: =SUM(M27:M30) -> 0 | N31: 11,581 | O31: =SUM(O27:O30) -> 9,624
A32: Rex Sole | B32: W | C32: n/a | D32: 1,459 | E32: 1,459 | F32: 48 | G32: n/a | H32: 3,086 | I32: 3,086 | J32: 83 | K32: n/a | L32: 2,951 | N32: n/a | O32: 2,956
B33: C | C33: n/a | D33: 4,930 | E33: 4,930 | F33: 1,433 | G33: n/a | H33: 8,739 | I33: 8,739 | J33: 1,553 | K33: n/a | L33: 8,357 | N33: n/a | O33: 8,371
B34: WYAK | C34: n/a | D34: 850 | E34: 850 | F34: 2 | G34: n/a | H34: 1,737 | I34: 1,737 | J34: 2 | K34: n/a | L34: 1,657 | N34: n/a | O34: 1,664
B35: EYAK/SEO | C35: n/a | D35: 1,072 | E35: 1,072 | F35: 0 | G35: n/a | H35: 1,811 | I35: 1,811 | J35: 0 | K35: n/a | L35: 1,727 | N35: n/a | O35: 1,734
B36: Total | C36: 10,860 | D36: =SUM(D32:D35) -> 8,311 | E36: =SUM(E32:E35) -> 8,311 | F36: =SUM(F32:F35) -> 1,483 | G36: 18,706 | H36: =SUM(H32:H35) -> 15,373 | I36: =SUM(I32:I35) -> 15,373 | J36: =SUM(J32:J35) -> 1,638 | K36: 17,889 | L36: =SUM(L32:L35) -> 14,692 | M36: =SUM(M32:M35) -> 0 | N36: 17,942 | O36: =SUM(O32:O35) -> 14,725
A37: Arrowtooth Flounder | B37: W | C37: n/a | D37: 28,100 | E37: 14,500 | F37: 286 | G37: n/a | H37: 37,253 | I37: 14,500 | J37: 1,043 | K37: n/a | L37: 35,994 | N37: n/a | O37: 34,765
B38: C | C38: n/a | D38: 107,934 | E38: 75,000 | F38: 26,530 | G38: n/a | H38: 73,480 | I38: 48,000 | J38: 16,391 | K38: n/a | L38: 70,995 | N38: n/a | O38: 68,575
B39: WYAK | C39: n/a | D39: 37,405 | E39: 6,900 | F39: 33 | G39: n/a | H39: 16,468 | I39: 6,900 | J39: 39 | K39: n/a | L39: 15,911 | N39: n/a | O39: 15,368
B40: EYAK/SEO | C40: n/a | D40: 12,654 | E40: 6,900 | F40: 14 | G40: n/a | H40: 23,744 | I40: 6,900 | J40: 25 | K40: n/a | L40: 22,941 | N40: n/a | O40: 22,157
B41: Total | C41: 219,327 | D41: =SUM(D37:D40) -> 186,093 | E41: =SUM(E37:E40) -> 103,300 | F41: =SUM(F37:F40) -> 26,863 | G41: 180,697 | H41: =SUM(H37:H40) -> 150,945 | I41: =SUM(I37:I40) -> 76,300 | J41: =SUM(J37:J40) -> 17,498 | K41: 174,598 | L41: =SUM(L37:L40) -> 145,841 | M41: =SUM(M37:M40) -> 0 | N41: 168,634 | O41: =SUM(O37:O40) -> 140,865
A42: Flathead Sole | B42: W | C42: n/a | D42: 11,098 | E42: 8,650 | F42: 73 | G42: n/a | H42: 12,690 | I42: 8,650 | J42: 151 | K42: n/a | L42: 13,234 | N42: n/a | O42: 13,771
B43: C | C43: n/a | D43: 20,339 | E43: 15,400 | F43: 1,978 | G43: n/a | H43: 20,238 | I43: 15,400 | J43: 1,894 | K43: n/a | L43: 21,109 | N43: n/a | O43: 21,965
B44: WYAK | C44: n/a | D44: 2,949 | E44: 2,949 | F44: 0 | G44: n/a | H44: 1,932 | I44: 1,932 | J44: 0 | K44: n/a | L44: 2,016 | N44: n/a | O44: 2,097
B45: S | C45: n/a | D45: 857 | E45: 857 | F45: 0 | G45: n/a | H45: 406 | I45: 406 | J45: 0 | K45: n/a | L45: 423 | N45: n/a | O45: 440
B46: Total | C46: 43,128 | D46: =SUM(D42:D45) -> 35,243 | E46: =SUM(E42:E45) -> 27,856 | F46: =SUM(F42:F45) -> 2,051 | G46: 43,011 | H46: =SUM(H42:H45) -> 35,266 | I46: =SUM(I42:I45) -> 26,388 | J46: =SUM(J42:J45) -> 2,045 | K46: 44,865 | L46: =SUM(L42:L45) -> 36,782 | M46: =SUM(M42:M45) -> 0 | N46: 46,666 | O46: =SUM(O42:O45) -> 38,273
A47: Sources: 2018 OFLs, ABCs, and TACs are from the harvest specifications adopted by the Council in December 2017; 2018 catches through November 8, 2018 from AKR Catch Accounting.
A49: November Plan Team OFL and ABC recommendations for Groundfish in the Gulf of Alaska (metric tons) for 2019 and 2020 (Page 2)
D51: 2017 | H51: 2018 | J51: Catch | K51: 2019 | N51: 2020
A52: Species | B52: Area | C52: OFL | D52: ABC | E52: TAC | F52: Catch | G52: OFL | H52: ABC | I52: TAC | J52: as of 11/8/18 | K52: OFL | L52: ABC | M52: TAC | N52: OFL | O52: ABC | P52: TAC
A53: Pacific ocean perch | B53: W | C53: n/a | D53: 2,679 | E53: 2,679 | F53: 2,682 | G53: n/a | H53: 3,312 | I53: 3,312 | J53: 3,225 | K53: n/a | L53: 3,227 | N53: n/a | O53: 3,125
B54: C | C54: n/a | D54: 16,671 | E54: 16,671 | F54: 18,442 | G54: n/a | H54: 20,112 | I54: 20,112 | J54: 17,644 | K54: n/a | L54: 19,646 | N54: n/a | O54: 19,024
B55: WYAK | C55: n/a | D55: 2,786 | E55: 2,786 | F55: 2,757 | G55: n/a | H55: 3,371 | I55: 3,371 | J55: 3,352 | K55: n/a | L55: 3,296 | N55: n/a | O55: 3,192
B56: W/C/WYAK | C56: 25,753 | D56: 22,136 | E56: 22,136 | F56: =F53+F54+F55 -> 23,881 | G56: 31,860 | H56: 26,795 | I56: 26,795 | J56: =J53+J54+J55 -> 24,221 | K56: 31,113 | L56: =SUM(L53:L55) -> 26,169 | N56: 30,128 | O56: =SUM(O53:O55) -> 25,341
B57: SEO | C57: 2,073 | D57: 1,782 | E57: 1,782 | F57: 0 | G57: 2,902 | H57: 2,441 | I57: 2,441 | J57: 0 | K57: 2,838 | L57: 2,386 | N57: 2,748 | O57: 2,311
B58: Total | C58: =C56+C57 -> 27,826 | D58: 23,918 | E58: 23,918 | F58: =F56+F57 -> 23,881 | G58: 34,762 | H58: 29,236 | I58: 29,236 | J58: =J56+J57 -> 24,221 | K58: =K56+K57 -> 33,951 | L58: =L56+L57 -> 28,555 | M58: =M56+M57 -> 0 | N58: =SUM(N56:N57) -> 32,876 | O58: =O56+O57 -> 27,652
A59: Northern Rockfish | B59: W | C59: n/a | D59: 432 | E59: 432 | F59: 234 | G59: n/a | H59: 420 | I59: 420 | J59: 297 | K59: n/a | L59: 1,190 | N59: n/a | O59: 1,122
B60: C | C60: n/a | D60: 3,354 | E60: 3,354 | F60: 1,601 | G60: n/a | H60: 3,261 | I60: 3,261 | J60: 2,047 | K60: n/a | L60: 3,338 | N60: n/a | O60: 3,147
B61: E | C61: n/a | D61: 4 | E61: 0 | F61: 0 | G61: n/a | H61: 4 | I61: 0 | J61: 0 | K61: n/a | L61: 1 | N61: n/a | O61: 1
B62: Total | C62: 4,522 | D62: =D59+D60+D61 -> 3,790 | E62: =E59+E60 -> 3,786 | F62: =SUM(F59:F61) -> 1,835 | G62: 4,380 | H62: =H59+H60+H61 -> 3,685 | I62: =I59+I60 -> 3,681 | J62: =SUM(J59:J61) -> 2,344 | K62: 5,402 | L62: =SUM(L59:L61) -> 4,529 | M62: =SUM(M59:M61) -> 0 | N62: 5,093 | O62: =SUM(O59:O61) -> 4,270
A63: Shortraker Rockfish | B63: W | C63: n/a | D63: 38 | E63: 38 | F63: 43 | G63: n/a | H63: 44 | I63: 44 | J63: 38 | K63: n/a | L63: 44 | N63: n/a | O63: 44
B64: C | C64: n/a | D64: 301 | E64: 301 | F64: 232 | G64: n/a | H64: 305 | I64: 305 | J64: 315 | K64: n/a | L64: 305 | N64: n/a | O64: 305
B65: E | C65: n/a | D65: 947 | E65: 947 | F65: 277 | G65: n/a | H65: 514 | I65: 514 | J65: 402 | K65: n/a | L65: 514 | N65: n/a | O65: 514
B66: Total | C66: 1,715 | D66: =SUM(D63:D65) -> 1,286 | E66: =SUM(E63:E65) -> 1,286 | F66: =SUM(F63:F65) -> 552 | G66: 1,151 | H66: =SUM(H63:H65) -> 863 | I66: =SUM(I63:I65) -> 863 | J66: =SUM(J63:J65) -> 755 | K66: 1,151 | L66: =SUM(L63:L65) -> 863 | M66: =SUM(M63:M65) -> 0 | N66: 1,151 | O66: =SUM(O63:O65) -> 863
A67: Dusky Rockfish | B67: W | C67: n/a | D67: 158 | E67: 158 | F67: 125 | G67: n/a | H67: 146 | I67: 146 | J67: 50 | K67: n/a | L67: 781 | N67: n/a | O67: 774
B68: C | C68: n/a | D68: 3,786 | E68: 3,786 | F68: 2,470 | G68: n/a | H68: 3,502 | I68: 3,502 | J68: 2,831 | K68: n/a | L68: 2,764 | N68: n/a | O68: 2,742
B69: WYAK | C69: n/a | D69: 251 | E69: 251 | F69: 22 | G69: n/a | H69: 232 | I69: 232 | J69: 11 | K69: n/a | L69: 95 | N69: n/a | O69: 94
B70: EYAK/SEO | C70: n/a | D70: 83 | E70: 83 | F70: 5 | G70: n/a | H70: 77 | I70: 77 | J70: 7 | K70: n/a | L70: 60 | N70: n/a | O70: 60
B71: Total | C71: 5,233 | D71: =SUM(D67:D70) -> 4,278 | E71: =SUM(E67:E70) -> 4,278 | F71: =SUM(F67:F70) -> 2,622 | G71: 4,841 | H71: =SUM(H67:H70) -> 3,957 | I71: =SUM(I67:I70) -> 3,957 | J71: =SUM(J67:J70) -> 2,899 | K71: 4,521 | L71: =SUM(L67:L70) -> 3,700 | M71: =SUM(M67:M70) -> 0 | N71: 4,484 | O71: =SUM(O67:O70) -> 3,670
A72: Rougheye and Blackspotted Rockfish | B72: W | C72: n/a | D72: 105 | E72: 105 | F72: 34 | G72: n/a | H72: 176 | I72: 176 | J72: 79 | K72: n/a | L72: 174 | N72: n/a | O72: 172
B73: C | C73: n/a | D73: 706 | E73: 706 | F73: 329 | G73: n/a | H73: 556 | I73: 556 | J73: 434 | K73: n/a | L73: 550 | N73: n/a | O73: 545
B74: E | C74: n/a | D74: 516 | E74: 516 | F74: 175 | G74: n/a | H74: 712 | I74: 712 | J74: 203 | K74: n/a | L74: 704 | N74: n/a | O74: 697
B75: Total | C75: 1,594 | D75: =SUM(D72:D74) -> 1,327 | E75: =SUM(E72:E74) -> 1,327 | F75: =SUM(F72:F74) -> 538 | G75: 1,735 | H75: =SUM(H72:H74) -> 1,444 | I75: =SUM(I72:I74) -> 1,444 | J75: =SUM(J72:J74) -> 716 | K75: 1,715 | L75: =SUM(L72:L74) -> 1,428 | M75: =SUM(M72:M74) -> 0 | N75: 1,699 | O75: =SUM(O72:O74) -> 1,414
A76: Demersal shelf rockfish | B76: Total | C76: 357 | D76: 227 | E76: 227 | F76: 130 | G76: 394 | H76: 250 | I76: 250 | J76: 133 | K76: 411 | L76: 261 | N76: 411 | O76: 261
A77: Thornyhead Rockfish | B77: W | C77: n/a | D77: 291 | E77: 291 | F77: 155 | G77: n/a | H77: 344 | I77: 344 | J77: 160 | K77: n/a | L77: 326 | N77: n/a | O77: 326
B78: C | C78: n/a | D78: 988 | E78: 988 | F78: 616 | G78: n/a | H78: 921 | I78: 921 | J78: 665 | K78: n/a | L78: 911 | N78: n/a | O78: 911
B79: E | C79: n/a | D79: 682 | E79: 682 | F79: 250 | G79: n/a | H79: 773 | I79: 773 | J79: 325 | K79: n/a | L79: 779 | N79: n/a | O79: 779
B80: Total | C80: 2,615 | D80: =SUM(D77:D79) -> 1,961 | E80: =SUM(E77:E79) -> 1,961 | F80: =SUM(F77:F79) -> 1,021 | G80: 2,717 | H80: =SUM(H77:H79) -> 2,038 | I80: =SUM(I77:I79) -> 2,038 | J80: =SUM(J77:J79) -> 1,150 | K80: 2,688 | L80: =SUM(L77:L79) -> 2,016 | M80: =SUM(M77:M79) -> 0 | N80: 2,688 | O80: =SUM(O77:O79) -> 2,016
A81: Other Rockfish | B81: W/C | C81: n/a | D81: 1,534 | E81: 1,534 | F81: 1,001 | G81: n/a | H81: 1,737 | I81: 1,737 | J81: 1,030 | K81: n/a | L81: 1,737 | N81: n/a | O81: 1,737
B82: WYAK | C82: n/a | D82: 574 | E82: 574 | F82: 45 | G82: n/a | H82: 368 | I82: 368 | J82: 126 | K82: n/a | L82: 368 | N82: n/a | O82: 368
B83: EYAK/SEO | C83: n/a | D83: 3,665 | E83: 200 | F83: 32 | G83: n/a | H83: 3,489 | I83: 200 | J83: 51 | K83: n/a | L83: 3,489 | N83: n/a | O83: 3,489
B84: Total | C84: 7,424 | D84: =SUM(D81:D83) -> 5,773 | E84: =SUM(E81:E83) -> 2,308 | F84: =SUM(F81:F83) -> 1,078 | G84: 7,356 | H84: =SUM(H81:H83) -> 5,594 | I84: =SUM(I81:I83) -> 2,305 | J84: =SUM(J81:J83) -> 1,207 | K84: 7,356 | L84: =SUM(L81:L83) -> 5,594 | M84: =SUM(M81:M83) -> 0 | N84: 7,356 | O84: =SUM(O81:O83) -> 5,594
A85: Atka mackerel | B85: Total | C85: 6,200 | D85: 4,700 | E85: 3,000 | F85: 1,074 | G85: 6,200 | H85: 4,700 | I85: 3,000 | J85: 1,431 | K85: 6,200 | L85: 4,700 | N85: 6,200 | O85: 4,700
A86: Big Skate | B86: W | C86: n/a | D86: 908 | E86: 908 | F86: 190 | G86: n/a | H86: 504 | I86: 504 | J86: 312 | K86: n/a | L86: 504 | N86: n/a | O86: 504
B87: C | C87: n/a | D87: 1,850 | E87: 1,850 | F87: 1,338 | G87: n/a | H87: 1,774 | I87: 1,774 | J87: 880 | K87: n/a | L87: 1,774 | N87: n/a | O87: 1,774
B88: E | C88: n/a | D88: 1,056 | E88: 1,056 | F88: 128 | G88: n/a | H88: 570 | I88: 570 | J88: 70 | K88: n/a | L88: 570 | N88: n/a | O88: 570
B89: Total | C89: 5,086 | D89: =SUM(D86:D88) -> 3,814 | E89: =SUM(E86:E88) -> 3,814 | F89: =SUM(F86:F88) -> 1,656 | G89: 3,797 | H89: =SUM(H86:H88) -> 2,848 | I89: =SUM(I86:I88) -> 2,848 | J89: =SUM(J86:J88) -> 1,262 | K89: 3,797 | L89: =SUM(L86:L88) -> 2,848 | M89: =SUM(M86:M88) -> 0 | N89: 3,797 | O89: =SUM(O86:O88) -> 2,848
A90: Longnose Skate | B90: W | C90: n/a | D90: 61 | E90: 61 | F90: 189 | G90: n/a | H90: 149 | I90: 149 | J90: 58 | K90: n/a | L90: 149 | N90: n/a | O90: 149
B91: C | C91: n/a | D91: 2,513 | E91: 2,513 | F91: 718 | G91: n/a | H91: 2,804 | I91: 2,804 | J91: 553 | K91: n/a | L91: 2,804 | N91: n/a | O91: 2,804
B92: E | C92: n/a | D92: 632 | E92: 632 | F92: 299 | G92: n/a | H92: 619 | I92: 619 | J92: 232 | K92: n/a | L92: 619 | N92: n/a | O92: 619
B93: Total | C93: 4,274 | D93: =SUM(D90:D92) -> 3,206 | E93: =SUM(E90:E92) -> 3,206 | F93: =SUM(F90:F92) -> 1,206 | G93: 4,763 | H93: =SUM(H90:H92) -> 3,572 | I93: =SUM(I90:I92) -> 3,572 | J93: =SUM(J90:J92) -> 843 | K93: 4,763 | L93: =SUM(L90:L92) -> 3,572 | M93: =SUM(M90:M92) -> 0 | N93: 4,763 | O93: =SUM(O90:O92) -> 3,572
A94: Other Skates | B94: GOA-wide | C94: 2,558 | D94: 1,919 | E94: 1,919 | F94: 1,573 | G94: 1,845 | H94: 1,384 | I94: 1,384 | J94: 681 | K94: 1,845 | L94: 1,384 | N94: 1,845 | O94: 1,384
A95: Sculpins | B95: GOA-wide | C95: 7,338 | D95: 5,591 | E95: 5,591 | F95: 1,316 | G95: 6,958 | H95: 5,301 | I95: 5,301 | J95: 550 | K95: 6,958 | L95: 5,301 | N95: 6,958 | O95: 5,301
A96: Sharks | B96: GOA-wide | C96: 6,020 | D96: 4,514 | E96: 4,514 | F96: 1,635 | G96: 6,020 | H96: 4,514 | I96: 4,514 | J96: 2,886 | K96: 10,913 | L96: 8,184 | N96: 10,913 | O96: 8,184
A97: Squids | B97: GOA-wide | C97: 1,516 | D97: 1,137 | E97: 1,137 | F97: 39 | G97: 1,516 | H97: 1,137 | I97: 1,137 | J97: 41 | K97: 0 | L97: 0 | M97: 0 | N97: 0 | O97: 0 | P97: 0
A98: Octopuses | B98: GOA-wide | C98: 6,504 | D98: 4,878 | E98: 4,878 | F98: 231 | G98: 1,300 | H98: 975 | I98: 975 | J98: 139 | K98: 1,300 | L98: 975 | N98: 1,300 | O98: 975
A99: TOTAL | C99: 796,158 | D99: 667,877 | E99: 535,863 | F99: 303,577 | G99: 655,707 | H99: 536,921 | I99: 427,512 | J99: 240,955 | K99: =K12+K16+K21++K26+K31+K36+K41+K46+K58+K62+K66+K71+K75+K76+K80+K84+K85+K89+K93+K94+K95+K96+K98 -> 664,889 | L99: =L12+L16+L21++L26+L31+L36+L41+L46+L58+L62+L66+L71+L75+L76+L80+L84+L85+L89+L93+L94+L95+L96+L98 -> 509,507 | N99: =N12+N16+N21++N26+N31+N36+N41+N46+N58+N62+N66+N71+N75+N76+N80+N84+N85+N89+N93+N94+N95+N96+N98 -> 627,049 | O99: =O12+O16+O21++O26+O31+O36+O41+O46+O58+O62+O66+O71+O75+O76+O80+O84+O85+O89+O93+O94+O95+O96+O98 -> 487,218
A100: Sources: 2018 OFLs, ABCs, and TACs are from the harvest specifications adopted by the Council in December 2017; 2018 catches through November 8, 2018 from AKR Catch Accounting.
